bitfinex-derivatives/quotes_BNBF0:USTF0_20230831
["timestamp","ask_amount","ask_price","bid_price","bid_amount"]
[1693482260645,0.81401216,225.91,225.29,0.18792656]
[1693482260843,0.81401216,225.93,225.27,0.18792656]
[1693482261047,0.88597352,225.93,225.26,0.18792656]
[1693482261344,0.81401216,225.92,225.27,0.18792656]
[1693482261548,0.81401216,225.92,225.25,0.18792656]
[1693482261850,0.07196136,225.89,225.25,0.18792656]
[1693482262050,0.88597352,225.88,225.2,0.18792656]
[1693482262247,0.81401216,225.87,225.21,0.18792656]
[1693482262452,0.81401216,225.87,225.19,0.18792656]
[1693482262652,0.81401216,225.87,225.2,0.18792656]
[1693482262951,0.81401216,225.87,225.21,0.18792656]
[1693482263255,0.88597352,225.87,225.22,0.18792656]
[1693482263448,0.81401216,225.86,225.23,0.18792656]
[1693482263748,0.81401216,225.86,225.24,0.18792656]
[1693482263952,0.81401216,225.86,225.18,0.18792656]
[1693482264653,0.81401216,225.86,225.18,0.25884601]
[1693482264851,0.81401216,225.87,225.19,0.18792656]
[1693482265052,0.81401216,225.86,225.19,0.18792656]
[1693482265347,0.81401216,225.85,225.19,0.18792656]
[1693482265552,0.81401216,225.87,225.19,0.18792656]
[1693482265750,0.81401216,225.86,225.18,0.18792656]
[1693482265950,0.81401216,225.85,225.18,0.18792656]
[1693482266152,0.81401216,225.87,225.18,0.18792656]
[1693482266355,0.81401216,225.86,225.18,0.18792656]
[1693482266547,0.81401216,225.87,225.18,0.18792656]
[1693482266748,0.81401216,225.86,225.18,0.18792656]
[1693482266951,0.81401216,225.85,225.18,0.18792656]
[1693482267249,0.81401216,225.84,225.18,0.18792656]
[1693482267452,0.81401216,225.87,225.18,0.18792656]
[1693482267653,0.81401216,225.86,225.18,0.18792656]
[1693482267850,0.81401216,225.87,225.18,0.18792656]
[1693482268155,0.88597352,225.87,225.18,0.18792656]
[1693482268455,0.81401216,225.86,225.18,0.18792656]
[1693482269351,0.88597352,225.86,225.18,0.18792656]
[1693482269556,0.88597352,225.85,225.17,0.18792656]
[1693482269858,0.88597352,225.84,225.18,0.18792656]
[1693482270157,0.81401216,225.83,225.18,0.18792656]
[1693482270555,0.81401216,225.83,225.17,0.18792656]
[1693482270750,0.81401216,225.83,225.19,0.18792656]
[1693482270948,0.07196136,225.79,225.2,0.18792656]
[1693482271149,0.88597352,225.78,225.13,0.18792656]
[1693482271457,0.07196136,225.76,225.14,0.18792656]
[1693482271652,0.07196136,225.76,225.12,0.18792656]
[1693482271850,0.88597352,225.75,225.12,0.18792656]
[1693482272054,0.88597352,225.75,225.12,0.25884601]
[1693482272253,0.81401216,225.74,225.13,0.18792656]
[1693482272753,0.81401216,225.74,225.12,0.18792656]
[1693482272951,0.81401216,225.74,225.14,0.18792656]
[1693482273258,0.81401216,225.74,225.15,0.18792656]
[1693482273457,0.07196136,225.73,225.13,0.07091945]
[1693482273658,0.88597352,225.74,225.16,0.18792656]
[1693482273956,0.81401216,225.73,225.17,0.18792656]
[1693482274156,0.81401216,225.73,225.15,0.25884601]
[1693482274451,0.88597352,225.74,225.16,0.18792656]
[1693482274657,0.81401216,225.73,225.17,0.18792656]
[1693482274856,0.81401216,225.73,225.15,0.18792656]
[1693482275055,0.81401216,225.73,225.16,0.18792656]
[1693482275450,0.81401216,225.72,225.15,0.18792656]
[1693482275655,0.81401216,225.73,225.16,0.18792656]
[1693482275855,0.81401216,225.71,225.16,0.18792656]
[1693482276154,0.81401216,225.7,225.17,0.18792656]
[1693482276357,0.81401216,225.72,225.15,0.18792656]
[1693482276554,0.81401216,225.72,225.18,0.18792656]
[1693482276750,0.81401216,225.72,225.19,0.18792656]
[1693482276950,0.81401216,225.72,225.2,0.18792656]
[1693482277152,0.81401216,225.72,225.15,0.18792656]
[1693482277356,0.07196136,225.7,225.16,0.25884601]
[1693482277560,0.81401216,225.69,225.17,0.18792656]
[1693482277759,0.81401216,225.69,225.16,0.25884601]
[1693482277957,0.81401216,225.69,225.17,0.18792656]
[1693482278559,0.81401216,225.69,225.16,0.18792656]
[1693482278759,0.81401216,225.69,225.18,0.18792656]
[1693482278960,0.07196136,225.68,225.19,0.18792656]
[1693482279264,0.81401216,225.67,225.2,0.18792656]
[1693482279458,0.81401216,225.67,225.17,0.18792656]
[1693482279659,0.81401216,225.67,225.18,0.18792656]
[1693482279855,0.81401216,225.67,225.19,0.18792656]
[1693482280057,0.81401216,225.67,225.17,0.18792656]
[1693482280260,0.81401216,225.67,225.18,0.18792656]
[1693482280557,0.81401216,225.67,225.19,0.18792656]
[1693482280756,0.81401216,225.67,225.2,0.18792656]
[1693482280960,0.81401216,225.67,225.17,0.18792656]
[1693482281161,0.81401216,225.67,225.18,0.18792656]
[1693482281355,0.81401216,225.67,225.17,0.18792656]
[1693482281559,0.81401216,225.67,225.18,0.18792656]
[1693482281760,0.81401216,225.67,225.19,0.18792656]
[1693482281956,0.81401216,225.67,225.2,0.18792656]
[1693482282162,0.81401216,225.67,225.21,0.18792656]
[1693482282361,0.07196136,225.69,225.17,0.25884601]
[1693482282561,2.39871206,225.83,225.17,0.25884601]
[1693482282562,0.81466415,225.68,225.22,0.18792656]
[1693482282759,0.81466415,225.68,225.18,0.18792656]
[1693482282959,0.07196136,225.69,225.19,0.18792656]
[1693482282960,0.07196136,225.67,225.19,0.18792656]
[1693482283161,0.88662551,225.67,225.19,0.18792656]
[1693482283360,0.07196136,225.63,225.19,0.18792656]
[1693482283562,0.07196136,225.63,225.16,0.18792656]
[1693482283763,0.07196136,225.64,225.16,0.18792656]
[1693482284067,0.81466415,225.63,225.2,0.18792656]
[1693482284263,0.81466415,225.64,225.17,0.18792656]
[1693482284469,0.81466415,225.64,225.11,0.18792656]
[1693482284662,0.81466415,225.64,225.12,0.18792656]
[1693482285062,0.81466415,225.64,225.11,0.07091945]
[1693482285063,0.81466415,225.64,225.13,0.18792656]
[1693482285271,0.81466415,225.64,225.12,0.18792656]
[1693482285471,0.81466415,225.65,225.15,0.07091945]
[1693482285666,0.07196136,225.7,225.16,0.18792656]
[1693482285862,0.81469807,225.69,225.16,0.18792656]
[1693482286569,0.88665943,225.69,225.16,0.18792656]
[1693482286770,0.81469807,225.68,225.15,0.18792656]
[1693482286971,0.81469807,225.69,225.16,0.18792656]
[1693482287171,0.81469807,225.68,225.15,0.18792656]
[1693482287371,0.81469807,225.69,225.16,0.18792656]
[1693482287566,0.81469807,225.68,225.15,0.18792656]
[1693482287870,0.07196136,225.7,225.14,0.07091945]
[1693482287871,0.81469807,225.67,225.16,0.18792656]
[1693482288071,0.81469807,225.69,225.15,0.18792656]
[1693482288366,0.81469807,225.68,225.16,0.18792656]
[1693482288571,0.81469807,225.68,225.14,0.18792656]
[1693482288767,0.81469807,225.68,225.17,0.18792656]
[1693482288966,0.81469807,225.68,225.14,0.25884601]
[1693482289167,0.81469807,225.69,225.18,0.18792656]
[1693482289370,0.81469807,225.68,225.15,0.18792656]
[1693482289565,0.81469807,225.69,225.16,0.18792656]
[1693482289770,0.81469807,225.68,225.15,0.18792656]
[1693482289970,0.81469807,225.69,225.16,0.18792656]
[1693482290270,0.07196136,225.7,225.17,0.18792656]
[1693482290271,0.81469807,225.68,225.17,0.18792656]
[1693482290472,0.81469807,225.69,225.15,0.18792656]
[1693482290866,0.81469807,225.68,225.16,0.18792656]
[1693482291067,0.81469807,225.67,225.17,0.18792656]
[1693482291267,0.81469807,225.7,225.14,0.18792656]
[1693482291469,0.81472497,225.69,225.15,0.18792656]
[1693482291666,0.81472497,225.7,225.15,0.18792656]
[1693482291967,0.81472497,225.69,225.15,0.25884601]
[1693482292168,0.81472497,225.71,225.16,0.18792656]
[1693482292369,0.81472497,225.7,225.16,0.18792656]
[1693482292572,0.81472497,225.71,225.16,0.18792656]
[1693482292768,0.88668633,225.7,225.16,0.25884601]
[1693482292970,0.81472497,225.69,225.17,0.18792656]
[1693482293667,0.81472497,225.69,225.17,0.25884601]
[1693482293871,0.81472497,225.69,225.18,0.18792656]
[1693482294274,0.07196136,225.71,225.18,0.25884601]
[1693482294470,0.14392272,225.74,225.19,0.07091945]
[1693482294471,0.81464296,225.7,225.19,0.07091945]
[1693482294674,0.81464296,225.71,225.19,0.25884601]
[1693482294871,0.07196136,225.69,225.22,0.07091945]
[1693482295071,0.07196136,225.69,225.23,0.18792656]
[1693482295273,0.07196136,225.68,225.23,0.18792656]
[1693482295473,0.07196136,225.69,225.23,0.18792656]
[1693482295670,0.07196136,225.69,225.23,0.25884601]
[1693482295870,0.07196136,225.69,225.24,0.18792656]
[1693482296278,0.07196136,225.7,225.24,0.18792656]
[1693482296575,0.07196136,225.69,225.24,0.18792656]
[1693482296773,0.07196136,225.68,225.24,0.25884601]
[1693482297077,0.07196136,225.68,225.25,0.18792656]
[1693482298077,0.07196136,225.72,225.28,0.07091945]
[1693482298278,0.07196136,225.72,225.29,0.18792656]
[1693482298678,0.07196136,225.72,225.29,0.25884601]
[1693482298976,0.07196136,225.72,225.3,0.18792656]
[1693482300881,0.07196136,225.7,225.3,0.18792656]
[1693482302378,0.07196136,225.71,225.3,0.18792656]
[1693482302578,0.07196136,225.72,225.3,0.25884601]
[1693482302775,0.07196136,225.72,225.31,0.18792656]
[1693482302976,0.07196136,225.7,225.31,0.25884601]
[1693482303178,0.07196136,225.71,225.32,0.18792656]
[1693482303578,0.07196136,225.77,225.32,0.25884601]
[1693482303881,0.14392272,225.79,224.87,3.30957469]
[1693482303882,0.07196136,225.82,225.36,0.07091945]
[1693482304075,0.07196136,225.84,225.37,0.07091945]
[1693482304279,0.07196136,225.86,225.38,0.07091945]
[1693482304478,0.07196136,225.86,225.15,0.94559277]
[1693482304479,0.95948482,225.94,225.37,0.18792656]
[1693482304675,0.07222602,225.85,225.38,0.07095992]
[1693482304981,0.07222602,225.84,225.39,0.18792656]
[1693482305383,0.07222602,225.83,225.39,0.18792656]
[1693482305575,2.40753421,225.97,225.38,0.18792656]
[1693482305576,0.07222602,225.82,225.38,0.18792656]
[1693482305779,0.07222602,225.84,225.38,0.18792656]
[1693482305975,0.07222602,225.84,225.4,0.18792656]
[1693482306177,0.07222602,225.8,225.4,0.18792656]
[1693482306486,0.07222602,225.79,225.34,0.18792656]
[1693482306784,0.07222602,225.79,225.04,0.94613237]
[1693482306785,0.07222602,225.78,225.41,0.18792656]
[1693482307177,0.81416606,225.77,225.35,0.18792656]
[1693482307380,0.88639208,225.77,225.36,0.18792656]
[1693482307575,0.88639208,225.77,225.26,0.18792656]
[1693482307780,0.81416606,225.76,225.37,0.18792656]
[1693482307982,0.81416606,225.76,225.27,0.18792656]
[1693482308277,0.81416606,225.76,225.28,0.18792656]
[1693482308482,0.88639208,225.76,225.25,0.18792656]
[1693482308884,0.81416606,225.75,225.29,0.18792656]
[1693482309084,0.81416606,225.75,225.26,0.18792656]
[1693482309284,0.81416606,225.75,225.3,0.18792656]
[1693482309582,0.07222602,225.71,225.24,0.18792656]
[1693482309786,0.88639208,225.7,225.31,0.18792656]
[1693482309988,0.88639208,225.7,225.32,0.18792656]
[1693482309989,0.07222602,225.69,225.32,0.18792656]
[1693482310184,0.81416606,225.69,225.32,0.18792656]
[1693482310486,0.81416606,225.69,225.19,0.18792656]
[1693482310881,0.81416606,225.69,225.2,0.18792656]
[1693482311282,0.81416606,225.69,225.18,0.18792656]
[1693482311484,0.81416606,225.69,225.21,0.18792656]
[1693482311686,0.81416606,225.69,225.19,0.18792656]
[1693482311887,0.88639208,225.69,225.2,0.18792656]
[1693482312088,0.81416606,225.68,225.18,0.25888648]
[1693482312387,0.81416606,225.68,225.19,0.18792656]
[1693482312687,0.07222602,225.69,225.19,0.18792656]
[1693482312986,0.81469229,225.68,225.19,0.18792656]
[1693482313188,0.81469229,225.69,225.18,0.18792656]
[1693482313388,0.81469401,225.68,225.19,0.18792656]
[1693482313583,0.81469401,225.69,225.18,0.18792656]
[1693482313887,0.81469411,225.68,225.19,0.18792656]
[1693482314589,0.88692013,225.68,225.2,0.18792656]
[1693482314785,0.81469411,225.67,225.2,0.18792656]
[1693482314991,0.81469411,225.67,225.17,0.18792656]
[1693482315288,0.88692013,225.67,225.18,0.18792656]
[1693482315488,0.81469411,225.66,225.16,0.18792656]
[1693482315690,0.07222602,225.68,225.16,0.25888648]
[1693482315883,0.07222602,225.69,225.17,0.25888648]
[1693482316090,0.81470033,225.68,225.18,0.18792656]
[1693482316291,0.88692635,225.68,225.18,0.18792656]
[1693482316589,0.81470033,225.67,225.17,0.18792656]
[1693482316789,0.81470033,225.67,225.18,0.18792656]
[1693482316991,0.81470033,225.67,225.17,0.18792656]
[1693482317288,0.81470033,225.67,225.18,0.18792656]
[1693482317585,0.81470033,225.67,225.15,0.07095992]
[1693482317586,0.81470033,225.67,225.19,0.18792656]
[1693482317790,0.81470033,225.67,225.16,0.25888648]
[1693482318086,0.81470033,225.67,225.17,0.18792656]
[1693482319090,0.88692635,225.67,225.17,0.18792656]
[1693482319285,0.81470033,225.66,225.17,0.18792656]
[1693482319685,0.07222602,225.63,225.17,0.18792656]
[1693482319890,0.88692635,225.62,225.13,0.18792656]
[1693482320192,0.81470033,225.61,225.14,0.18792656]
[1693482320386,0.81470033,225.61,225.12,0.18792656]
[1693482320586,0.81470033,225.61,225.13,0.18792656]
[1693482320784,0.81470033,225.61,225.12,0.18792656]
[1693482320991,0.81470033,225.61,225.13,0.18792656]
[1693482321192,0.81470033,225.61,225.12,0.18792656]
[1693482321394,0.07222602,225.62,225.12,0.18792656]
[1693482321594,0.07222602,225.63,225.12,0.18792656]
[1693482321893,0.81492807,225.62,225.12,0.18792656]
[1693482322295,0.88715409,225.62,225.12,0.18792656]
[1693482322488,0.81492807,225.61,225.11,0.18792656]
[1693482323095,0.07222602,225.63,225.11,0.18792656]
[1693482323295,0.81493127,225.62,225.11,0.18792656]
[1693482323796,0.81493127,225.62,225.11,0.25888648]
[1693482323997,0.88715729,225.64,225.11,0.18792656]
[1693482324189,0.81495252,225.63,225.12,0.18792656]
[1693482324391,0.88717854,225.63,225.11,0.18792656]
[1693482324590,0.81495252,225.62,225.13,0.18792656]
[1693482324795,0.81495252,225.62,225.14,0.18792656]
[1693482324994,0.81495252,225.63,225.14,0.18792656]
[1693482325197,0.81492515,225.62,225.1,0.25888648]
[1693482325495,0.81492515,225.62,225.11,0.18792656]
[1693482325691,0.07222602,225.65,225.11,0.18792656]
[1693482325896,0.07222602,225.65,225.09,0.07095992]
[1693482325897,0.81492022,225.64,225.1,0.18792656]
[1693482326096,0.81492022,225.64,225.12,0.18792656]
[1693482326298,0.81492022,225.64,225.13,0.18792656]
[1693482326491,0.81492022,225.64,225.1,0.18792656]
[1693482327298,0.88714624,225.64,225.1,0.18792656]
[1693482327493,0.81492022,225.63,225.1,0.18792656]
[1693482327695,0.81492022,225.63,225.11,0.18792656]
[1693482327893,0.81492022,225.63,225.08,0.18792656]
[1693482328199,0.81492022,225.63,225.09,0.18792656]
[1693482328399,0.88714624,225.63,225.09,0.18792656]
[1693482328598,0.81492022,225.63,225.08,0.18792656]
[1693482328802,0.81492022,225.62,225.08,0.18792656]
[1693482329099,0.81492022,225.62,225.09,0.18792656]
[1693482329298,0.88714624,225.63,225.09,0.18792656]
[1693482329494,0.81492022,225.61,225.07,0.18792656]
[1693482329701,0.81492022,225.61,225.1,0.18792656]
[1693482329897,0.81492022,225.61,225.11,0.18792656]
[1693482329898,0.07222602,225.58,225.11,0.18792656]
[1693482330300,0.81492022,225.57,224.98,0.18792656]
[1693482330500,0.81492022,225.57,225.12,0.18792656]
[1693482330695,0.81492022,225.58,224.99,0.18792656]
[1693482330897,0.81492022,225.58,225.0,0.18792656]
[1693482331101,0.81492022,225.57,225.0,0.18792656]
[1693482331303,0.81492022,225.57,224.98,0.25888648]
[1693482331504,0.81492022,225.56,225.01,0.18792656]
[1693482331799,0.81492022,225.56,225.02,0.18792656]
[1693482332003,0.07222602,225.62,225.02,0.18792656]
[1693482332004,0.81492022,225.59,225.02,0.18792656]
[1693482332303,0.81492022,225.55,224.97,0.18792656]
[1693482332504,0.81492022,225.58,225.03,0.18792656]
[1693482332697,0.81492022,225.54,224.97,0.18792656]
[1693482332900,0.07222602,225.62,225.04,0.18792656]
[1693482333098,0.81524517,225.61,224.98,0.18792656]
[1693482333297,0.81524517,225.61,224.99,0.18792656]
[1693482333501,0.81524517,225.61,224.97,0.18792656]
[1693482333705,0.81524517,225.61,225.0,0.18792656]
[1693482334007,0.81524517,225.6,225.01,0.18792656]
[1693482334200,0.81524517,225.6,224.99,0.07095992]
[1693482334401,0.81524517,225.59,225.02,0.18792656]
[1693482334603,0.81524517,225.59,225.0,0.25888648]
[1693482334803,0.81524517,225.67,225.01,0.18792656]
[1693482335002,0.07222602,225.68,225.01,0.18792656]
[1693482335199,0.81504501,225.66,225.01,0.18792656]
[1693482335404,0.81504501,225.67,225.01,0.18792656]
[1693482335606,0.81504501,225.66,225.01,0.18792656]
[1693482335905,0.81504501,225.65,225.01,0.18792656]
[1693482336102,0.81504501,225.67,225.01,0.18792656]
[1693482336307,0.81504501,225.66,225.01,0.25888648]
[1693482336507,0.81504501,225.67,225.02,0.18792656]
[1693482336706,0.81504501,225.67,225.03,0.18792656]
[1693482336907,0.81504501,225.67,225.01,0.18792656]
[1693482337209,0.81504501,225.67,225.02,0.18792656]
[1693482337509,0.81504501,225.67,225.03,0.18792656]
[1693482337807,0.88727103,225.67,225.01,0.18792656]
[1693482338009,0.81504501,225.66,225.04,0.18792656]
[1693482338308,0.81504501,225.66,225.05,0.18792656]
[1693482338700,0.81504501,225.66,225.0,0.07095992]
[1693482338701,0.07222602,225.64,225.02,0.07095992]
[1693482338902,0.81504501,225.63,225.03,0.18792656]
[1693482339104,0.07222602,225.62,225.03,0.18792656]
[1693482339306,0.81504501,225.61,225.02,0.07095992]
[1693482339507,0.81504501,225.63,225.03,0.18792656]
[1693482339703,0.81504501,225.62,225.03,0.18792656]
[1693482339909,0.81504501,225.63,225.03,0.18792656]
[1693482340109,0.81504501,225.62,225.03,0.25888648]
[1693482340310,0.81504501,225.63,225.04,0.18792656]
[1693482340513,0.81504501,225.61,225.04,0.18792656]
[1693482340713,0.88727103,225.6,225.07,0.07095992]
[1693482340912,0.81504501,225.59,225.08,0.18792656]
[1693482341813,0.88727103,225.59,225.08,0.18792656]
[1693482342011,0.81504501,225.58,225.08,0.18792656]
[1693482342608,0.88727103,225.59,225.08,0.18792656]
[1693482342809,0.07222602,225.57,225.1,0.07095992]
[1693482343116,0.07222602,225.58,225.11,0.25888648]
[1693482343312,0.07222602,225.58,225.12,0.18792656]
[1693482344618,0.07222602,225.57,225.12,0.25888648]
[1693482344811,0.07222602,225.57,225.13,0.18792656]
[1693482345214,0.07222602,225.56,225.13,0.18792656]
[1693482345412,0.07222602,225.56,225.14,0.18792656]
[1693482345614,0.07222602,225.55,225.12,0.18792656]
[1693482345816,0.07222602,225.55,225.13,0.18792656]
[1693482346017,0.07222602,225.56,225.12,0.18792656]
[1693482346217,0.07222602,225.56,225.13,0.18792656]
[1693482346417,0.07222602,225.56,225.11,0.07095992]
[1693482346418,0.07222602,225.56,225.12,0.18792656]
[1693482346618,0.07222602,225.55,225.13,0.18792656]
[1693482346819,0.07222602,225.55,225.12,0.25888648]
[1693482347019,0.07222602,225.55,225.13,0.18792656]
[1693482347218,0.07222602,225.56,225.13,0.25888648]
[1693482347419,0.07222602,225.56,225.14,0.25888648]
[1693482347823,0.07222602,225.56,225.15,0.18792656]
[1693482348321,0.14445205,225.59,225.15,0.18792656]
[1693482348322,0.07222602,225.57,225.15,0.18792656]
[1693482348815,0.07222602,225.57,225.15,0.25888648]
[1693482349015,0.07222602,225.56,225.16,0.18792656]
[1693482349215,0.07222602,225.55,225.16,0.18792656]
[1693482350614,0.07222602,225.54,225.16,0.25888648]
[1693482351018,0.07222602,225.54,225.17,0.18792656]
[1693482351321,0.07222602,225.55,225.17,0.18792656]
[1693482351523,0.07222602,225.54,225.17,0.18792656]
[1693482352824,0.07222602,225.53,225.17,0.25888648]
[1693482353024,0.07222602,225.52,225.18,0.18792656]
[1693482353225,0.07222602,225.52,225.19,0.18792656]
[1693482353424,0.07222602,225.51,225.2,0.18792656]
[1693482353623,0.07222602,225.51,225.21,0.18792656]
[1693482353824,0.07222602,225.51,225.17,0.18792656]
[1693482354025,0.07222602,225.51,225.18,0.18792656]
[1693482354222,0.07222602,225.51,225.17,0.18792656]
[1693482354427,0.07222602,225.51,225.18,0.18792656]
[1693482354622,0.07222602,225.52,225.17,0.18792656]
[1693482354825,0.07222602,225.51,225.18,0.25888648]
[1693482355022,0.07222602,225.51,225.19,0.18792656]
[1693482357534,0.07222602,225.51,225.19,0.25888648]
[1693482357730,0.07222602,225.51,225.2,0.18792656]
[1693482360236,0.07222602,225.53,225.2,0.25888648]
[1693482360534,0.07222602,225.53,225.06,0.47306618]
[1693482360535,0.07222602,225.53,225.21,0.25888648]
[1693482360835,0.07222602,225.53,225.22,0.18792656]
[1693482361029,0.07222602,225.53,225.22,0.25888648]
[1693482361236,0.07222602,225.53,225.23,0.18792656]
[1693482361428,0.07222602,225.54,225.23,0.18792656]
[1693482361635,0.07222602,225.53,225.23,0.18792656]
[1693482362029,0.07222602,225.53,225.22,0.18792656]
[1693482362536,0.07222602,225.52,225.22,0.18792656]
[1693482362734,0.07222602,225.52,225.21,0.18792656]
[1693482363036,0.07222602,225.52,225.2,0.07095992]
[1693482363037,0.07222602,225.52,225.22,0.18792656]
[1693482363239,0.07222602,225.52,225.21,0.18792656]
[1693482363434,0.07222602,225.52,225.22,0.18792656]
[1693482363731,0.07222602,225.52,225.2,0.07095992]
[1693482363732,0.07222602,225.52,225.23,0.18792656]
[1693482363930,0.07222602,225.52,225.21,0.18792656]
[1693482364136,0.07222602,225.51,225.22,0.18792656]
[1693482364330,0.07222602,225.51,225.19,0.07095992]
[1693482364331,0.07222602,225.51,225.23,0.18792656]
[1693482364634,0.07222602,225.52,225.24,0.18792656]
[1693482364835,0.07222602,225.52,225.21,0.18792656]
[1693482365433,0.07222602,225.52,225.2,0.18792656]
[1693482365636,0.07222602,225.52,225.2,0.25888648]
[1693482365836,0.07222602,225.52,225.21,0.18792656]
[1693482366634,0.07222602,225.51,225.21,0.25888648]
[1693482366840,0.07222602,225.51,225.22,0.18792656]
[1693482367240,0.07222602,225.52,225.22,0.18792656]
[1693482367440,0.07222602,225.53,225.22,0.25888648]
[1693482367640,0.07222602,225.52,225.23,0.18792656]
[1693482367942,0.06860333,225.52,225.23,0.18792656]
[1693482368439,0.06860333,225.52,225.24,0.18792656]
[1693482368637,0.14445205,225.52,225.23,0.07095992]
[1693482368839,0.14445205,225.52,225.24,0.18792656]
[1693482369040,0.14445205,225.53,225.24,0.18792656]
[1693482369240,0.14445205,225.54,225.24,0.25888648]
[1693482369440,0.14445205,225.54,225.25,0.18792656]
[1693482369936,0.14445205,225.54,225.25,0.25888648]
[1693482370136,0.14445205,225.54,225.26,0.18792656]
[1693482370540,0.14445205,225.61,225.28,0.07095992]
[1693482370840,0.14445205,225.61,225.04,0.94613237]
[1693482370841,0.14445205,225.62,225.29,0.25888648]
[1693482371037,0.14445205,225.63,225.3,0.25888648]
[1693482371239,0.14445205,225.63,225.31,0.18792656]
[1693482372441,0.14445205,225.66,225.31,0.18792656]
[1693482372644,0.14445205,225.66,225.29,0.18792656]
[1693482372844,0.14445205,225.65,225.29,0.18792656]
[1693482373144,0.14445205,225.65,225.3,0.18792656]
[1693482373338,0.14445205,225.65,225.28,0.18792656]
[1693482373539,0.14445205,225.65,225.29,0.18792656]
[1693482373740,0.14445205,225.64,225.3,0.18792656]
[1693482373938,0.14445205,225.64,225.31,0.18792656]
[1693482374141,0.14445205,225.65,225.27,0.18792656]
[1693482374339,0.14445205,225.64,225.32,0.18792656]
[1693482374641,0.14445205,225.64,225.33,0.18792656]
[1693482375046,0.14445205,225.64,225.24,0.07095992]
[1693482375243,0.14445205,225.64,225.25,0.18493106]
[1693482375643,0.14445205,225.66,225.25,0.25589098]
[1693482375844,0.14445205,225.66,225.26,0.18493106]
[1693482377349,0.14445205,225.66,225.25,0.18493106]
[1693482377644,0.14445205,225.67,225.26,0.18493106]
[1693482378447,0.14445205,225.67,225.25,0.18493106]
[1693482379249,0.14445205,225.68,225.25,0.18493106]
[1693482380650,0.14445205,225.69,225.25,0.18493106]
[1693482380851,0.14445205,225.67,225.25,0.18493106]
[1693482381145,0.14445205,225.62,225.26,0.18493106]
[1693482381451,0.14445205,225.6,225.27,0.18493106]
[1693482381653,0.14445205,225.6,225.17,0.18493106]
[1693482381855,0.14445205,225.59,225.18,0.18523064]
[1693482382045,0.14445205,225.59,225.17,0.18523064]
[1693482382351,0.14445205,225.59,225.18,0.18523064]
[1693482382545,0.14445205,225.6,225.17,0.18523064]
[1693482382751,0.14445205,225.6,225.18,0.18523064]
[1693482382951,0.14445205,225.6,225.19,0.18523064]
[1693482383151,0.14445205,225.6,225.17,0.18523064]
[1693482383352,0.14445205,225.59,225.18,0.18523064]
[1693482383551,0.14445205,225.59,225.17,0.18523064]
[1693482383753,0.14445205,225.59,225.18,0.18523064]
[1693482384047,0.14445205,225.6,225.19,0.18523064]
[1693482384248,0.14445205,225.6,225.17,0.18523064]
[1693482384454,0.14445205,225.65,225.21,0.07095992]
[1693482384647,0.14445205,225.65,225.22,0.25619056]
[1693482384951,0.14445205,225.65,225.23,0.18523064]
[1693482385952,0.14445205,225.65,225.22,0.25619056]
[1693482386152,0.14445205,225.65,225.23,0.18523064]
[1693482386548,0.14445205,225.67,225.23,0.25619056]
[1693482386755,0.14445205,225.67,225.24,0.18523064]
[1693482387551,0.14445205,225.66,225.24,0.18523064]
[1693482388054,0.14445205,225.67,225.24,0.18523064]
[1693482388655,0.14445205,225.66,225.24,0.18523064]
[1693482389554,0.14445205,225.65,225.24,0.18523064]
[1693482389853,0.14445205,225.65,225.22,0.07095992]
[1693482389854,0.14445205,225.65,225.25,0.18523064]
[1693482390257,0.14445205,225.65,225.26,0.18523064]
[1693482390452,0.14445205,225.65,225.23,0.18523064]
[1693482390655,0.14445205,225.65,225.24,0.18523064]
[1693482390856,0.14445205,225.65,225.25,0.18523064]
[1693482391052,0.14445205,225.65,225.23,0.18523064]
[1693482391259,0.14445205,225.64,225.24,0.18523064]
[1693482391462,0.14445205,225.59,225.23,0.18523064]
[1693482391658,0.14445205,225.59,225.24,0.18523064]
[1693482391858,0.14445205,225.59,225.25,0.18523064]
[1693482392054,0.14445205,225.59,225.18,0.18523064]
[1693482392258,0.14445205,225.59,225.19,0.18523064]
[1693482392454,0.14445205,225.59,225.18,0.18523064]
[1693482392658,0.14445205,225.58,225.19,0.18523064]
[1693482392972,0.14445205,225.59,225.2,0.18523064]
[1693482393157,0.14445205,225.6,225.18,0.25619056]
[1693482393358,0.14445205,225.6,225.19,0.18523064]
[1693482393855,0.14445205,225.59,225.19,0.25619056]
[1693482394061,0.14445205,225.59,225.2,0.18523064]
[1693482394261,0.14445205,225.6,225.2,0.18523064]
[1693482395159,0.14445205,225.59,225.2,0.18523064]
[1693482395356,0.14445205,225.59,225.19,0.18523064]
[1693482395560,0.14445205,225.59,225.2,0.18523064]
[1693482395760,0.14445205,225.59,225.19,0.18523064]
[1693482395960,0.14445205,225.59,225.2,0.18523064]
[1693482396161,0.14445205,225.59,225.19,0.18523064]
[1693482398562,0.14445205,225.6,225.19,0.25619056]
[1693482398763,0.14445205,225.6,225.2,0.18523064]
[1693482400364,0.14445205,225.64,225.23,0.07095992]
[1693482400561,0.14445205,225.65,225.25,0.07095992]
[1693482400762,0.14445205,225.7,225.29,0.07095992]
[1693482401167,0.14445205,225.7,225.3,0.18523064]
[1693482401465,0.14445205,225.73,225.32,0.07095992]
[1693482401664,0.14445205,225.73,225.3,0.18523064]
[1693482401665,0.14445205,225.73,225.33,0.07095992]